fUST/lending_fUST_20240902
["ID","MTS","AMOUNT","RATE_DAILY","PERIOD"]
[336870100,1725221445700,-500.0,0.0002493,2]
[336870101,1725221445710,-500.0,0.00024931,2]
[336870102,1725221445719,-538.61482479,0.00024931,2]
[336870103,1725221445729,-187.89479241,0.00024931,2]
[336870104,1725221445739,-500.0,0.00024931,2]
[336870105,1725221445749,-500.0,0.00024931,2]
[336870106,1725221445759,-500.0,0.00024931,2]
[336870107,1725221445768,-485.92556822,0.00024931,2]
[336870108,1725221445778,-500.0,0.00024931,2]
[336870109,1725221445787,-500.0,0.00024931,2]
[336870110,1725221445796,-500.0,0.00024931,2]
[336870111,1725221445806,-500.0,0.00024931,2]
[336870112,1725221445817,-500.0,0.00024931,2]
[336870113,1725221445828,-500.0,0.00024931,2]
[336870114,1725221445838,-500.0,0.00024931,2]
[336870115,1725221445848,-500.0,0.00024931,2]
[336870116,1725221445859,-500.0,0.00024931,2]
[336870117,1725221445868,-500.0,0.00024931,2]
[336870118,1725221445879,-500.0,0.00024931,2]
[336870119,1725221445889,-500.0,0.00024931,2]
[336870120,1725221445899,-500.0,0.00024931,2]
[336870122,1725221445908,-500.0,0.00024931,2]
[336870123,1725221445917,-500.0,0.00024931,2]
[336870124,1725221445926,-500.0,0.00024931,2]
[336870125,1725221445935,-500.0,0.00024931,2]
[336870126,1725221445945,-500.0,0.00024931,2]
[336870127,1725221445954,-500.0,0.00024931,2]
[336870128,1725221445964,-726.06,0.00024931,2]
[336870129,1725221445973,-536.3871627,0.00024931,2]
[336870130,1725221445982,-500.0,0.00024931,2]
[336870131,1725221445993,-449.61626795,0.00024931,2]
[336870132,1725221446002,-500.0,0.00024931,2]
[336870133,1725221446013,-629.14,0.00024931,2]
[336870134,1725221446024,-306.81856574,0.00024931,2]
[336870135,1725221446034,-500.0,0.00024931,2]
[336870136,1725221446043,-500.0,0.00024931,2]
[336870137,1725221446054,-500.0,0.00024931,2]
[336870138,1725221446064,-500.0,0.00024931,2]
[336870139,1725221446073,-525.37,0.00024931,2]
[336870140,1725221446082,-500.0,0.00024931,2]
[336870141,1725221446091,-500.0,0.00024931,2]
[336870142,1725221446102,-669.19,0.00024931,2]
[336870143,1725221446111,-512.64148021,0.00024931,2]
[336870144,1725221446120,-500.0,0.00024931,2]
[336870145,1725221446129,-500.0,0.00024931,2]
[336870146,1725221446139,-500.44581736,0.00024931,2]
[336870147,1725221446148,-505.74567991,0.00024931,2]
[336870148,1725221446158,-500.0,0.00024931,2]
[336870149,1725221446166,-500.0,0.00024931,2]
[336870150,1725221446175,-500.0,0.00024931,2]
[336870151,1725221446185,-500.0,0.00024931,2]
[336870152,1725221446193,-500.0,0.00024931,2]
[336870153,1725221446202,-500.0,0.00024931,2]
[336870154,1725221446211,-500.0,0.00024931,2]
[336870155,1725221446221,-602.91,0.00024931,2]
[336870156,1725221446230,-630.32934669,0.00024931,2]
[336870157,1725221446240,-588.13,0.00024931,2]
[336870158,1725221446249,-500.0,0.00024931,2]
[336870159,1725221446258,-500.0,0.00024931,2]
[336870160,1725221446268,-500.0,0.00024931,2]
[336870161,1725221446277,-501.19927622,0.00024931,2]
[336870162,1725221446286,-500.0,0.00024931,2]
[336870163,1725221446295,-500.0,0.00024931,2]
[336870164,1725221446304,-502.05045916,0.00024931,2]
[336870165,1725221446313,-500.0,0.00024931,2]
[336870166,1725221446323,-500.0,0.00024931,2]
[336870167,1725221446332,-500.0,0.00024931,2]
[336870168,1725221446341,-500.0,0.00024931,2]
[336870169,1725221446353,-500.0,0.00024931,2]
[336870170,1725221446367,-744.17,0.00024931,2]
[336870171,1725221446376,-500.0,0.00024931,2]
[336870172,1725221446518,-500.0,0.00024931,2]
[336870173,1725221446529,-500.0,0.00024931,2]
[336870174,1725221446539,-500.0,0.00024931,2]
[336870175,1725221446550,-500.0,0.00024931,2]
[336870176,1725221446559,-500.0,0.00024931,2]
[336870177,1725221446568,-500.0,0.00024931,2]
[336870178,1725221446577,-500.0,0.00024931,2]
[336870179,1725221446586,-500.0,0.00024931,2]
[336870180,1725221446595,-932.78,0.00024931,2]
[336870181,1725221446605,-500.0,0.00024931,2]
[336870182,1725221446614,-500.0,0.00024931,2]
[336870183,1725221446623,-500.0,0.00024931,2]
[336870184,1725221446633,-500.0,0.00024931,2]
[336870185,1725221446642,-743.62,0.00024931,2]
[336870186,1725221446651,-500.0,0.00024931,2]
[336870187,1725221446660,-500.0,0.00024931,2]
[336870188,1725221446669,-491.00930412,0.00024931,2]
[336870189,1725221446678,-502.33822911,0.00024931,2]
[336870190,1725221446688,-500.0,0.00024931,2]
[336870191,1725221446697,-826.14,0.00024931,2]
[336870192,1725221446706,-526.25,0.00024931,2]
[336870193,1725221446715,-500.0,0.00024931,2]
[336870194,1725221446724,-500.0,0.00024931,2]
[336870195,1725221446733,-500.0,0.00024931,2]
[336870196,1725221446747,-500.0,0.00024931,2]
[336870197,1725221446759,-516.44415558,0.00024931,2]
[336870198,1725221446769,-500.0,0.00024931,2]
[336870199,1725221446778,-500.0,0.00024931,2]
[336870200,1725221446787,-500.0,0.00024931,2]
[336870201,1725221446798,-500.0,0.00024931,2]
[336870202,1725221446807,-500.0,0.00024931,2]
[336870203,1725221446816,-500.0,0.00024931,2]
[336870204,1725221446826,-500.0,0.00024931,2]
[336870205,1725221446835,-500.0,0.00024931,2]
[336870206,1725221446845,-500.0,0.00024931,2]
[336870207,1725221446855,-500.0,0.00024931,2]
[336870208,1725221446865,-500.0,0.00024931,2]
[336870209,1725221446874,-500.0,0.00024931,2]
[336870210,1725221446885,-384.18026537,0.00024931,2]
[336870211,1725221446894,-500.0,0.00024931,2]
[336870212,1725221446904,-500.0,0.00024931,2]
[336870213,1725221446913,-206.59434215,0.00024931,2]
[336870214,1725221446922,-500.0,0.00024931,2]
[336870215,1725221446931,-500.0,0.00024931,2]
[336870216,1725221446940,-206.64923251,0.00024931,2]
[336870217,1725221446950,-500.0,0.00024931,2]
[336870218,1725221446959,-500.0,0.00024931,2]
[336870219,1725221446968,-708.06,0.00024931,2]
[336870220,1725221446977,-500.0,0.00024931,2]
[336870221,1725221446986,-500.0,0.00024931,2]
[336870222,1725221446995,-500.0,0.00024931,2]
[336870223,1725221447005,-867.45,0.00024931,2]
[336870224,1725221447014,-500.0,0.00024931,2]
[336870225,1725221447024,-500.0,0.00024931,2]
[336870226,1725221447033,-500.0,0.00024931,2]
[336870227,1725221447042,-500.0,0.00024931,2]
[336870228,1725221447053,-500.0,0.00024931,2]
[336870229,1725221447064,-500.0,0.00024931,2]
[336870230,1725221447074,-500.0,0.00024931,2]
[336870231,1725221447084,-4097.09,0.00024931,2]
[336870232,1725221447093,-500.0,0.00024931,2]
[336870233,1725221447102,-500.0,0.00024931,2]
[336870234,1725221447111,-500.0,0.00024931,2]
[336870235,1725221447120,-500.0,0.00024931,2]
[336870236,1725221447128,-500.0,0.00024931,2]
[336870237,1725221447138,-500.0,0.00024931,2]
[336870238,1725221447149,-500.0,0.00024931,2]
[336870239,1725221447159,-504.07763335,0.00024931,2]
[336870240,1725221447170,-500.0,0.00024931,2]
[336870241,1725221447179,-500.0,0.00024931,2]
[336870242,1725221447189,-500.0,0.00024931,2]
[336870243,1725221447202,-500.0,0.00024931,2]
[336870244,1725221447212,-500.0,0.00024931,2]
[336870245,1725221447221,-500.0,0.00024931,2]
[336870246,1725221447230,-501.813284,0.00024931,2]
[336870247,1725221447245,-500.0,0.00024931,2]
[336870248,1725221447255,-500.0,0.00024931,2]
[336870249,1725221447265,-500.0,0.00024931,2]
[336870250,1725221447274,-500.0,0.00024931,2]
[336870251,1725221447284,-500.0,0.00024931,2]
[336870252,1725221447292,-1450.26,0.00024931,2]
[336870253,1725221447301,-500.0,0.00024931,2]
[336870254,1725221447311,-500.0,0.00024931,2]
[336870255,1725221447320,-500.0,0.00024931,2]
[336870256,1725221447329,-500.0,0.00024931,2]
[336870257,1725221447339,-500.0,0.00024931,2]
[336870258,1725221447350,-500.0,0.00024931,2]
[336870259,1725221447361,-500.0,0.00024931,2]
[336870260,1725221447374,-500.0,0.00024931,2]
[336870261,1725221447384,-500.0,0.00024931,2]
[336870262,1725221447393,-596.57,0.00024931,2]
[336870263,1725221447403,-500.0,0.00024931,2]
[336870264,1725221447416,-500.0,0.00024931,2]
[336870265,1725221447426,-500.0,0.00024931,2]
[336870266,1725221447436,-500.0,0.00024931,2]
[336870267,1725221447445,-500.0,0.00024931,2]
[336870268,1725221447455,-500.0,0.00024931,2]
[336870269,1725221447465,-501.81214045,0.00024931,2]
[336870270,1725221447474,-500.0,0.00024931,2]
[336870271,1725221447483,-500.0,0.00024931,2]
[336870272,1725221447494,-500.0,0.00024931,2]
[336870273,1725221447503,-500.0,0.00024931,2]
[336870274,1725221447512,-500.0,0.00024931,2]
[336870275,1725221447522,-500.0,0.00024931,2]
[336870276,1725221447531,-696.49,0.00024931,2]
[336870277,1725221447542,-500.0,0.00024931,2]
[336870278,1725221447553,-500.0,0.00024931,2]
[336870279,1725221447563,-500.0,0.00024931,2]
[336870280,1725221447572,-500.0,0.00024931,2]
[336870281,1725221447582,-557.99,0.00024931,2]
[336870282,1725221447591,-500.0,0.00024931,2]
[336870283,1725221447600,-500.0,0.00024931,2]
[336870284,1725221447609,-500.0,0.00024931,2]
[336870285,1725221447618,-607.28,0.00024931,2]
[336870286,1725221447627,-500.0,0.00024931,2]
[336870287,1725221447636,-170.48473044,0.00024931,2]
[336870288,1725221447646,-168.19705482,0.00024931,2]
[336870289,1725221447655,-500.0,0.00024931,2]
[336870290,1725221447664,-500.0,0.00024931,2]
[336870291,1725221447673,-500.0,0.00024931,2]
[336870292,1725221447683,-500.0,0.00024931,2]
[336870293,1725221447692,-500.0,0.00024931,2]
[336870294,1725221447701,-500.0,0.00024931,2]
[336870295,1725221447712,-771.11,0.00024931,2]
[336870296,1725221447722,-1775.25,0.00024931,2]
[336870297,1725221447731,-354.29299928,0.00024931,2]
[336870298,1725221447742,-500.0,0.00024931,2]
[336870299,1725221447751,-2239.26,0.00024931,2]
[336870300,1725221447760,-344.95063862,0.00024931,2]
[336870301,1725221447770,-500.0,0.00024931,2]
[336870302,1725221447779,-500.0,0.00024931,2]
[336870303,1725221447788,-775.26,0.00024931,2]
[336870304,1725221447798,-500.0,0.00024931,2]
[336870305,1725221447807,-500.0,0.00024931,2]
[336870306,1725221447816,-500.0,0.00024931,2]
[336870307,1725221447826,-500.0,0.00024931,2]
[336870308,1725221447837,-500.0,0.00024931,2]
[336870309,1725221447848,-804.01,0.00024931,2]
[336870310,1725221447859,-500.0,0.00024931,2]
[336870311,1725221447868,-500.0,0.00024931,2]
[336870312,1725221447877,-500.0,0.00024931,2]
[336870313,1725221447886,-1126.8,0.00024931,2]
[336870314,1725221447895,-500.0,0.00024931,2]
[336870315,1725221447904,-500.0,0.00024931,2]
[336870316,1725221447913,-500.0,0.00024931,2]
[336870317,1725221447923,-500.0,0.00024931,2]
[336870318,1725221447932,-732.64,0.00024931,2]
[336870319,1725221447941,-500.0,0.00024931,2]
[336870320,1725221447952,-500.0,0.00024931,2]
[336870321,1725221447962,-1034.02,0.00024931,2]
[336870322,1725221447971,-500.0,0.00024931,2]
[336870323,1725221447980,-500.0,0.00024931,2]
[336870324,1725221447990,-1065.51,0.00024931,2]
[336870325,1725221447999,-500.0,0.00024931,2]
[336870326,1725221448008,-500.0,0.00024931,2]
[336870327,1725221448018,-500.0,0.00024931,2]
[336870328,1725221448027,-500.0,0.00024931,2]
[336870329,1725221448036,-861.53,0.00024931,2]
[336870330,1725221448045,-500.0,0.00024931,2]
[336870331,1725221448055,-500.0,0.00024931,2]
[336870332,1725221448064,-568.69,0.00024931,2]
[336870333,1725221448073,-770.89,0.00024931,2]
[336870334,1725221448083,-500.0,0.00024931,2]
[336870335,1725221448092,-500.0,0.00024931,2]
[336870336,1725221448102,-500.0,0.00024931,2]
[336870337,1725221448111,-875.86,0.00024931,2]
[336870338,1725221448119,-500.0,0.00024931,2]
[336870339,1725221448129,-500.0,0.00024931,2]
[336870340,1725221448138,-1002.3,0.00024931,2]
[336870341,1725221448147,-500.0,0.00024931,2]
[336870342,1725221448156,-650.83,0.00024931,2]
[336870343,1725221448166,-500.0,0.00024931,2]
[336870344,1725221448176,-500.0,0.00024931,2]
[336870345,1725221448185,-500.0,0.00024931,2]
[336870346,1725221448195,-500.0,0.00024931,2]
[336870347,1725221448204,-500.0,0.00024931,2]
[336870348,1725221448214,-733.2,0.00024931,2]
[336870349,1725221448225,-500.0,0.00024931,2]
[336870350,1725221448235,-500.0,0.00024931,2]
[336870351,1725221448244,-1330.05,0.00024931,2]
[336870352,1725221448254,-500.0,0.00024931,2]
[336870353,1725221448263,-500.0,0.00024931,2]
[336870354,1725221448273,-500.0,0.00024931,2]
[336870355,1725221448282,-500.0,0.00024931,2]
[336870356,1725221448292,-500.0,0.00024931,2]
[336870357,1725221448301,-1571.19,0.00024931,2]
[336870358,1725221448310,-500.0,0.00024931,2]
[336870359,1725221448320,-500.0,0.00024931,2]
[336870360,1725221448329,-500.0,0.00024931,2]
[336870361,1725221448339,-500.0,0.00024931,2]
[336870362,1725221448348,-500.0,0.00024931,2]
[336870363,1725221448357,-500.0,0.00024931,2]
[336870364,1725221448370,-1765.6,0.00024931,2]
[336870365,1725221448379,-500.0,0.00024931,2]
[336870366,1725221448388,-500.0,0.00024931,2]
[336870367,1725221448397,-500.0,0.00024931,2]
[336870368,1725221448407,-500.0,0.00024931,2]
[336870369,1725221448416,-795.14,0.00024931,2]
[336870370,1725221448426,-2304.22,0.00024931,2]
[336870371,1725221448435,-500.0,0.00024931,2]
[336870372,1725221448445,-500.0,0.00024931,2]
[336870373,1725221448455,-596.63,0.00024931,2]
[336870374,1725221448465,-2010.43,0.00024931,2]
[336870375,1725221448475,-500.0,0.00024931,2]
[336870376,1725221448484,-500.0,0.00024931,2]
[336870377,1725221448494,-456.10523102,0.00024931,2]
[336870378,1725221448503,-500.0,0.00024931,2]
[336870379,1725221448512,-500.0,0.00024931,2]
[336870380,1725221448522,-500.0,0.00024931,2]
[336870381,1725221448531,-500.0,0.00024931,2]
[336870382,1725221448541,-500.0,0.00024931,2]
[336870383,1725221448550,-500.0,0.00024931,2]
[336870384,1725221448559,-500.0,0.00024931,2]
[336870385,1725221448568,-500.0,0.00024931,2]
[336870386,1725221448578,-500.0,0.00024931,2]
[336870387,1725221448588,-500.0,0.00024931,2]
[336870388,1725221448597,-2263.82,0.00024931,2]
[336870389,1725221448607,-500.0,0.00024931,2]
[336870390,1725221448616,-500.0,0.00024931,2]
[336870391,1725221448625,-500.0,0.00024931,2]
[336870392,1725221448634,-502.5642853,0.00024931,2]
[336870393,1725221448644,-500.0,0.00024931,2]
[336870394,1725221448653,-717.92,0.00024931,2]
[336870395,1725221448663,-500.0,0.00024931,2]
[336870396,1725221448672,-2148.37,0.00024931,2]
[336870397,1725221448682,-3110.39,0.00024931,2]
[336870398,1725221448691,-500.0,0.00024931,2]
[336870399,1725221448701,-500.0,0.00024931,2]
[336870400,1725221448710,-500.0,0.00024931,2]
[336870401,1725221448719,-500.0,0.00024931,2]
[336870402,1725221448728,-1986.33,0.00024931,2]
[336870403,1725221448738,-500.0,0.00024931,2]
[336870404,1725221448747,-500.0,0.00024931,2]
[336870405,1725221448757,-500.0,0.00024931,2]
[336870406,1725221448766,-1749.24,0.00024931,2]
[336870407,1725221448776,-500.0,0.00024931,2]
[336870408,1725221448786,-500.0,0.00024931,4]
[336870409,1725221448796,-500.0,0.00024931,2]
[336870410,1725221448805,-955.41,0.00024931,2]
[336870411,1725221448815,-729.89,0.00024931,2]
[336870412,1725221448826,-324.27186465,0.00024931,2]
[336870413,1725221448836,-500.0,0.00024931,2]
[336870414,1725221448846,-500.0,0.00024931,2]
[336870415,1725221448857,-500.0,0.00024931,2]
[336870416,1725221448866,-500.0,0.00024931,2]
[336870417,1725221448875,-1414.5,0.00024931,2]
[336870418,1725221448885,-500.0,0.00024931,2]
[336870419,1725221448895,-500.0,0.00024931,2]
[336870420,1725221448904,-500.0,0.00024931,2]
[336870421,1725221448913,-500.96254311,0.00024931,2]
[336870422,1725221448923,-509.6084453,0.00024931,2]
[336870423,1725221448933,-500.0,0.00024931,2]
[336870424,1725221448942,-500.0,0.00024931,2]
[336870425,1725221448952,-2912.8,0.00024931,2]
[336870426,1725221448961,-500.0,0.00024931,2]
[336870427,1725221448971,-500.0,0.00024931,2]
[336870428,1725221448982,-747.76,0.00024931,2]
[336870429,1725221448992,-500.0,0.00024931,2]
[336870430,1725221449002,-14303.52,0.00024931,2]
[336870431,1725221449011,-711.24,0.00024931,2]
[336870432,1725221449022,-500.0,0.00024931,2]
[336870433,1725221449031,-426.32808891,0.00024931,2]
[336870434,1725221449041,-500.0,0.00024931,2]
[336870435,1725221449050,-500.0,0.00024931,2]
[336870436,1725221449060,-1078.76,0.00024931,2]
[336870437,1725221449069,-500.0,0.00024931,2]
[336870438,1725221449079,-842.64,0.00024931,2]
[336870439,1725221449089,-1783.4,0.00024931,2]
[336870440,1725221449098,-500.0,0.00024931,2]
[336870441,1725221449108,-1630.76,0.00024931,2]
[336870442,1725221449244,-500.0,0.00024931,2]
[336870443,1725221449254,-500.0,0.00024931,2]
[336870444,1725221449264,-500.0,0.00024931,2]
[336870445,1725221449274,-2448.54,0.00024931,2]
[336870446,1725221449284,-500.0,0.00024931,2]
[336870447,1725221449294,-500.0,0.00024931,2]
[336870448,1725221449303,-1088.52,0.00024931,2]
[336870449,1725221449312,-626.36,0.00024931,2]
[336870450,1725221449322,-500.0,0.00024931,2]
[336870451,1725221449332,-500.0,0.00024931,2]
[336870452,1725221449342,-500.0,0.00024931,2]
[336870453,1725221449352,-500.0,0.00024931,2]
[336870454,1725221449364,-3166.18,0.00024931,2]
[336870455,1725221449375,-1494.38,0.00024931,2]
[336870456,1725221449384,-500.0,0.00024931,2]
[336870457,1725221449394,-500.0,0.00024931,2]
[336870458,1725221449405,-302.37385269,0.00024931,2]
[336870459,1725221449415,-1766.48,0.00024931,2]
[336870460,1725221449425,-500.0,0.00024931,2]
[336870461,1725221449435,-500.0,0.00024931,2]
[336870462,1725221449445,-500.0,0.00024931,2]
[336870463,1725221449456,-500.0,0.00024931,2]
[336870464,1725221449466,-626.76,0.00024931,2]
[336870465,1725221449476,-500.0,0.00024931,2]
[336870466,1725221449486,-530.99,0.00024931,2]
[336870467,1725221449497,-2374.13,0.00024931,2]
[336870468,1725221449507,-1804.34,0.00024931,2]
[336870469,1725221449518,-500.0,0.00024931,2]
[336870470,1725221449527,-503.24694525,0.00024931,2]
[336870471,1725221449538,-500.0,0.00024931,2]
[336870472,1725221449549,-547.9,0.00024931,2]
[336870473,1725221449558,-1026.45,0.00024931,2]
[336870474,1725221449567,-1436.26,0.00024931,2]
[336870475,1725221449578,-2634.53,0.00024931,2]
[336870476,1725221449588,-736.46,0.00024931,2]
[336870477,1725221449598,-500.0,0.00024931,2]
[336870478,1725221449607,-500.0,0.00024931,2]
[336870479,1725221449617,-500.0,0.00024931,2]
[336870480,1725221449626,-500.0,0.00024931,2]
[336870481,1725221449635,-500.0,0.00024931,2]
[336870482,1725221449645,-500.0,0.00024931,2]
[336870483,1725221449655,-1599.02,0.00024931,2]
[336870484,1725221449664,-500.0,0.00024931,2]
[336870485,1725221449674,-1766.03,0.00024931,2]
[336870486,1725221449684,-1729.93,0.00024931,2]
[336870487,1725221449693,-500.0,0.00024931,2]
[336870488,1725221449703,-1077.65,0.00024931,2]
[336870489,1725221449712,-500.0,0.00024931,2]
[336870490,1725221449721,-500.0,0.00024931,2]
[336870491,1725221449731,-1648.2,0.00024931,2]
[336870492,1725221449741,-500.0,0.00024931,2]
[336870493,1725221449750,-1186.35,0.00024931,2]
[336870494,1725221449759,-500.0,0.00024931,2]
[336870495,1725221449769,-500.0,0.00024931,2]
[336870496,1725221449778,-508.52,0.00024931,2]
[336870497,1725221449787,-1210.09,0.00024931,2]
[336870498,1725221449796,-529.85447976,0.00024931,2]
[336870499,1725221449806,-500.0,0.00024931,2]
[336870500,1725221449815,-500.0,0.00024931,2]
[336870501,1725221449825,-1348.36,0.00024931,2]
[336870502,1725221449834,-366.88312887,0.00024931,2]
[336870503,1725221449844,-501.9532307,0.00024931,2]
[336870504,1725221449854,-678.43,0.00024931,2]
[336870505,1725221449864,-500.0,0.00024931,2]
[336870506,1725221449873,-1129.55,0.00024931,2]
[336870507,1725221449883,-500.0,0.00024931,2]
[336870508,1725221449897,-828.02,0.00024931,2]
[336870509,1725221449908,-500.0,0.00024931,2]
[336870510,1725221449920,-1327.14,0.00024931,2]
[336870511,1725221449931,-6057.72,0.00024931,2]
[336870512,1725221449942,-500.0,0.00024931,2]
[336870513,1725221449952,-546.15,0.00024931,2]
[336870514,1725221449963,-500.0,0.00024931,2]
[336870515,1725221449973,-500.0,0.00024931,2]
[336870516,1725221449984,-500.0,0.00024931,2]
[336870517,1725221450004,-500.0,0.00024931,2]
[336870518,1725221450014,-500.0,0.00024931,2]
[336870519,1725221450025,-725.57,0.00024931,2]
[336870520,1725221450035,-500.0,0.00024931,2]
[336870521,1725221450045,-7675.38,0.00024931,2]
[336870522,1725221450055,-1148.79,0.00024931,2]
[336870523,1725221450065,-1062.3,0.00024931,2]
[336870524,1725221450075,-748.97,0.00024931,2]
[336870525,1725221450085,-500.0,0.00024931,2]
[336870526,1725221450095,-500.0,0.00024931,2]
[336870527,1725221450104,-1772.48,0.00024931,2]
[336870528,1725221450113,-1624.73,0.00024931,2]
[336870529,1725221450123,-1529.18,0.00024931,2]
[336870530,1725221450132,-500.0,0.00024931,2]
[336870531,1725221450141,-500.0,0.00024931,2]
[336870532,1725221450150,-1498.24,0.00024931,2]
[336870533,1725221450161,-500.0,0.00024931,2]
[336870534,1725221450170,-732.03,0.00024931,2]
[336870535,1725221450180,-500.0,0.00024931,2]
[336870536,1725221450190,-931.0,0.00024931,2]
[336870537,1725221450200,-500.0,0.00024931,2]
[336870538,1725221450209,-1839.62,0.00024931,2]
[336870539,1725221450218,-500.0,0.00024931,2]
[336870540,1725221450228,-250.45872117,0.00024931,2]
[336870541,1725221450237,-500.0,0.00024931,2]
[336870542,1725221450250,-500.0,0.00024931,2]
[336870543,1725221450260,-500.0,0.00024931,2]
[336870544,1725221450269,-506.48044378,0.00024931,2]
[336870545,1725221450279,-500.0,0.00024931,2]
[336870546,1725221450289,-2093.63,0.00024931,2]
[336870547,1725221450302,-500.0,0.00024931,2]
[336870548,1725221450311,-3271.16,0.00024931,2]
[336870549,1725221450321,-1437.72,0.00024931,2]
[336870550,1725221450331,-500.0,0.00024931,2]
[336870551,1725221450341,-500.0,0.00024931,2]
[336870552,1725221450350,-500.0,0.00024931,2]
[336870553,1725221450360,-1574.33,0.00024931,2]
[336870554,1725221450373,-2206.77,0.00024931,2]
[336870555,1725221450382,-2327.32,0.00024931,2]
[336870556,1725221450391,-500.0,0.00024931,2]
[336870557,1725221450401,-583.14,0.00024931,2]
[336870558,1725221450411,-500.0,0.00024931,2]
[336870559,1725221450420,-566.25,0.00024931,2]
[336870560,1725221450430,-500.0,0.00024931,2]
[336870561,1725221450439,-1439.73,0.00024931,2]
[336870562,1725221450451,-593.55,0.00024931,2]
[336870563,1725221450461,-820.8,0.00024931,2]
[336870564,1725221450470,-500.0,0.00024931,2]
[336870565,1725221450480,-500.0,0.00024931,2]
[336870566,1725221450491,-500.0,0.00024931,2]
[336870567,1725221450501,-503.86842878,0.00024931,2]
[336870568,1725221450510,-571.59,0.00024931,2]
[336870569,1725221450520,-1508.27,0.00024931,2]
[336870570,1725221450530,-500.0,0.00024973,2]
[336870571,1725221450541,-171.0,0.00025,2]
[336870572,1725221450551,-150.112233,0.00025,7]
[336870573,1725221450562,-150.112233,0.00025,3]
[336870574,1725221450571,-1000.0,0.00025,2]
[336870575,1725221450581,-161.0,0.00025,2]
[336870576,1725221450591,-150.112233,0.000251,9]
[336870577,1725221450600,-153.02792783,0.00025105,7]
[336870578,1725221450609,-153.52,0.00025105,7]
[336870579,1725221450619,-153.21542783,0.00025105,7]
[336870580,1725221450628,-153.21542783,0.00025105,7]
[336870581,1725221450638,-153.21542783,0.00025105,7]
[336870582,1725221450648,-153.21542783,0.00025105,7]
[336870583,1725221450658,-153.21542783,0.00025105,7]
[336870584,1725221450668,-153.21542783,0.00025105,7]
[336870585,1725221450677,-153.21542783,0.00025105,7]
[336870586,1725221450688,-153.99529182,0.00025105,7]
[336870587,1725221450697,-154.49,0.00025105,7]
[336870588,1725221450707,-154.18279182,0.00025105,7]
[336870589,1725221450716,-154.18279182,0.00025105,7]
[336870590,1725221450725,-154.18279182,0.00025105,7]
[336870591,1725221450735,-154.18279182,0.00025105,7]
[336870592,1725221450745,-154.18279182,0.00025105,7]
[336870593,1725221450754,-154.18279182,0.00025105,7]
[336870594,1725221450764,-154.18279182,0.00025105,7]
[336870595,1725221450773,-723.14755868,0.00025194,3]
[336870596,1725221450784,-2169.44267604,0.00025195,3]
[336870597,1725221450794,-1884.93,0.00025199,2]
[336870598,1725221450804,-150.112233,0.000252,8]
[336870599,1725221450815,-3000.0,0.000252,2]
[336870600,1725221450824,-150.112233,0.000252,7]